[Event "Titled Tuesday Blitz August 16 Early 2022"]
[White "Sovetbekova, Nurai"]
[Black "Sirosh, Ilja"]
[WhiteFideId "13801910"]
[BlackFideId "4500458"]
[WhiteElo "1646"]
[BlackElo "2255"]
[Result "1/2-1/2"]
[Round "01"]
[TimeControl "180+2"]
[Date "2022.08.18"]
[WhiteClock "0:00:00"]
[BlackClock "0:00:00"]

1. d4 {[%clk 0:00:00]}  d5 {[%clk 0:00:00]} 2. c4 {[%clk 0:00:00]}  e6 {[%clk 0:00:00]} 3. Nf3 {[%clk 0:00:00]}  Nf6 {[%clk 0:00:00]} 4. g3 {[%clk 0:00:00]}  dxc4 {[%clk 0:00:00]} 5. Bg2 {[%clk 0:00:00]}  Nbd7 {[%clk 0:00:00]} 6. O-O {[%clk 0:00:00]}  c6 {[%clk 0:00:00]} 7. a4 {[%clk 0:00:00]}  a5 {[%clk 0:00:00]} 8. Na3 {[%clk 0:00:00]}  Bxa3 {[%clk 0:00:00]} 9. Rxa3 {[%clk 0:00:00]}  O-O {[%clk 0:00:00]} 10. Qc2 {[%clk 0:00:00]}  b5 {[%clk 0:00:00]} 11. axb5 {[%clk 0:00:00]}  cxb5 {[%clk 0:00:00]} 12. Ne5 {[%clk 0:00:00]}  Ra6 {[%clk 0:00:00]} 13. Bd2 {[%clk 0:00:00]}  Nxe5 {[%clk 0:00:00]} 14. dxe5 {[%clk 0:00:00]}  Nd5 {[%clk 0:00:00]} 15. Rd1 {[%clk 0:00:00]}  Qc7 {[%clk 0:00:00]} 16. b3 {[%clk 0:00:00]}  b4 {[%clk 0:00:00]} 17. Ra2 {[%clk 0:00:00]}  c3 {[%clk 0:00:00]} 18. e4 {[%clk 0:00:00]}  cxd2 {[%clk 0:00:00]} 19. exd5 {[%clk 0:00:00]}  Qxc2 {[%clk 0:00:00]} 20. Rxc2 {[%clk 0:00:00]}  exd5 {[%clk 0:00:00]} 21. Bxd5 {[%clk 0:00:00]}  Be6 {[%clk 0:00:00]} 22. Rdxd2 {[%clk 0:00:00]}  h5 {[%clk 0:00:00]} 23. h4 {[%clk 0:00:00]}  Bxd5 {[%clk 0:00:00]} 24. Rxd5 {[%clk 0:00:00]}  Rb8 {[%clk 0:00:00]} 25. Ra2 {[%clk 0:00:00]}  a4 {[%clk 0:00:00]} 26. bxa4 {[%clk 0:00:00]}  b3 {[%clk 0:00:00]} 27. Rb2 {[%clk 0:00:00]}  Rxa4 {[%clk 0:00:00]} 28. Rd3 {[%clk 0:00:00]}  Rab4 {[%clk 0:00:00]} 29. Kf1 {[%clk 0:00:00]}  Kf8 {[%clk 0:00:00]} 30. Ke2 {[%clk 0:00:00]}  Ke7 {[%clk 0:00:00]} 31. f4 {[%clk 0:00:00]}  Ke6 {[%clk 0:00:00]} 32. Kf3 {[%clk 0:00:00]}  R8b7 {[%clk 0:00:00]} 33. Rd6+ {[%clk 0:00:00]}  Kf5 {[%clk 0:00:00]} 34. Rd3 {[%clk 0:00:00]}  R4b5 {[%clk 0:00:00]} 35. Rd4 {[%clk 0:00:00]}  f6 {[%clk 0:00:00]} 36. exf6 {[%clk 0:00:00]}  gxf6 {[%clk 0:00:00]} 37. Rd3 {[%clk 0:00:00]}  Rb8 {[%clk 0:00:00]} 38. Rc3 {[%clk 0:00:00]}  Ke6 {[%clk 0:00:00]} 39. Re2+ {[%clk 0:00:00]}  Kd5 {[%clk 0:00:00]} 40. Rd2+ {[%clk 0:00:00]}  Ke6 {[%clk 0:00:00]} 41. Re3+ {[%clk 0:00:00]}  Kf7 {[%clk 0:00:00]} 42. Rb2 {[%clk 0:00:00]}  R8b6 {[%clk 0:00:00]} 43. Rc3 {[%clk 0:00:00]}  Ke6 {[%clk 0:00:00]} 44. Re2+ {[%clk 0:00:00]}  Kd6 {[%clk 0:00:00]} 45. Rd2+ {[%clk 0:00:00]}  Rd5 {[%clk 0:00:00]} 46. Rb2 {[%clk 0:00:00]}  Rdb5 {[%clk 0:00:00]} 47. Rd2+ {[%clk 0:00:00]}  Ke7 {[%clk 0:00:00]} 48. Re3+ {[%clk 0:00:00]}  Kf7 {[%clk 0:00:00]} 49. Rb2 {[%clk 0:00:00]}  f5 {[%clk 0:00:00]} 50. Rc3 {[%clk 0:00:00]}  Ke6 {[%clk 0:00:00]} 51. Re2+ {[%clk 0:00:00]}  Kf6 {[%clk 0:00:00]} 52. Rb2 {[%clk 0:00:00]}  Rb4 {[%clk 0:00:00]} 53. Rd3 {[%clk 0:00:00]}  Ke7 {[%clk 0:00:00]} 54. Re2+ {[%clk 0:00:00]}  Re6 {[%clk 0:00:00]} 55. Rb2 {[%clk 0:00:00]}  Reb6 {[%clk 0:00:00]} 56. Re2+ {[%clk 0:00:00]}  Kf7 {[%clk 0:00:00]} 57. Rb2 {[%clk 0:00:00]}  R6b5 {[%clk 0:00:00]} 58. Rc3 {[%clk 0:00:00]}  Ke6 {[%clk 0:00:00]} 59. Re2+ {[%clk 0:00:00]}  Kd6 {[%clk 0:00:00]} 60. Rd2+ {[%clk 0:00:00]}  Rd5 {[%clk 0:00:00]} 61. Rb2 {[%clk 0:00:00]}  Rdb5 {[%clk 0:00:00]} 62. Rd2+ {[%clk 0:00:00]}  Ke7 {[%clk 0:00:00]} 63. Rb2 {[%clk 0:00:00]}  Kf6 {[%clk 0:00:00]} 64. Rd3 {[%clk 0:00:00]}  Rb6 {[%clk 0:00:00]} 65. Rc3 {[%clk 0:00:00]}  R4b5 {[%clk 0:00:00]} 66. Rd3 {[%clk 0:00:00]}  Rb7 {[%clk 0:00:00]} 67. Rc3 {[%clk 0:00:00]}  R5b6 {[%clk 0:00:00]} 68. Rd3 {[%clk 0:00:00]}  Ke7 {[%clk 0:00:00]} 69. Re2+ {[%clk 0:00:00]}  Re6 {[%clk 0:00:00]} 70. Rb2 {[%clk 0:00:00]}  Rc6 {[%clk 0:00:00]} 71. Rdxb3 {[%clk 0:00:00]}  Rxb3+ {[%clk 0:00:00]} 72. Rxb3 {[%clk 0:00:00]}  Kd6 {[%clk 0:00:00]} 73. Rd3+ {[%clk 0:00:00]}  Kc5 {[%clk 0:00:00]} 74. Re3 {[%clk 0:00:00]}  Kd4 {[%clk 0:00:00]} 75. Ra3 {[%clk 0:00:00]}  Rb6 {[%clk 0:00:00]} 76. Ra4+ {[%clk 0:00:00]}  Kd5 {[%clk 0:00:00]} 77. Ra5+ {[%clk 0:00:00]}  Ke6 {[%clk 0:00:00]} 78. Re5+ {[%clk 0:00:00]}  Kf6 {[%clk 0:00:00]} 79. Re3 {[%clk 0:00:00]}  Rb1 {[%clk 0:00:00]} 80. Rc3 {[%clk 0:00:00]}  Rf1+ {[%clk 0:00:00]} 81. Kg2 {[%clk 0:00:00]}  Rb1 {[%clk 0:00:00]} 82. Rc8 {[%clk 0:00:00]}  Rb2+ {[%clk 0:00:00]} 83. Kh3 {[%clk 0:00:00]}  Ke6 {[%clk 0:00:00]} 84. Rg8 {[%clk 0:00:00]}  Kd5 {[%clk 0:00:00]} 85. Rg5 {[%clk 0:00:00]}  Ke4 {[%clk 0:00:00]} 86. Rxh5 {[%clk 0:00:00]}  Kf3 {[%clk 0:00:00]} 87. Rxf5 {[%clk 0:00:00]}  Rb1 {[%clk 0:00:00]} 88. Kh2 {[%clk 0:00:00]}  Rb2+ {[%clk 0:00:00]} 89. Kh1 {[%clk 0:00:00]}  Kxg3 {[%clk 0:00:00]} 90. Rg5+ {[%clk 0:00:00]}  Kxf4 {[%clk 0:00:00]} 91. Rg2 {[%clk 0:00:00]}  Rb1+ {[%clk 0:00:00]} 92. Kh2 {[%clk 0:00:00]}  Kf3 {[%clk 0:00:00]} 93. h5 {[%clk 0:00:00]}  Rb5 {[%clk 0:00:00]} 94. Rg3+ {[%clk 0:00:00]}  Kf4 {[%clk 0:00:00]} 95. Rh3 {[%clk 0:00:00]}  Kg5 {[%clk 0:00:00]} 96. Rg3+ {[%clk 0:00:00]}  Kxh5 {[%clk 0:00:00]} 97. Rc3 {[%clk 0:00:00]}  Kg6 {[%clk 0:00:00]} 98. Kg3 {[%clk 0:00:00]} 1/2-1/2


[Site "https://www.chess.com"]

[Event "Titled Tuesday Blitz August 16 Early 2022"]
[White "Subelj, Jan"]
[Black "Broca Jimenez, Fernando"]
[WhiteFideId "14618583"]
[BlackFideId "5104742"]
[WhiteElo "2331"]
[BlackElo "2062"]
[Result "1-0"]
[Round "01"]
[TimeControl "180+2"]
[Date "2022.08.18"]
[WhiteClock "0:00:00"]
[BlackClock "0:00:00"]

1. Nf3 {[%clk 0:00:00]}  g6 {[%clk 0:00:00]} 2. g3 {[%clk 0:00:00]}  Bg7 {[%clk 0:00:00]} 3. Bg2 {[%clk 0:00:00]}  Nf6 {[%clk 0:00:00]} 4. O-O {[%clk 0:00:00]}  d6 {[%clk 0:00:00]} 5. c4 {[%clk 0:00:00]}  O-O {[%clk 0:00:00]} 6. Nc3 {[%clk 0:00:00]}  Nbd7 {[%clk 0:00:00]} 7. d4 {[%clk 0:00:00]}  e5 {[%clk 0:00:00]} 8. b3 {[%clk 0:00:00]}  c6 {[%clk 0:00:00]} 9. Ba3 {[%clk 0:00:00]}  exd4 {[%clk 0:00:00]} 10. Nxd4 {[%clk 0:00:00]}  Nb6 {[%clk 0:00:00]} 11. e4 {[%clk 0:00:00]}  Re8 {[%clk 0:00:00]} 12. h3 {[%clk 0:00:00]}  d5 {[%clk 0:00:00]} 13. exd5 {[%clk 0:00:00]}  cxd5 {[%clk 0:00:00]} 14. c5 {[%clk 0:00:00]}  Nbd7 {[%clk 0:00:00]} 15. c6 {[%clk 0:00:00]}  bxc6 {[%clk 0:00:00]} 16. Nxc6 {[%clk 0:00:00]}  Qc7 {[%clk 0:00:00]} 17. Nxd5 {[%clk 0:00:00]}  Nxd5 {[%clk 0:00:00]} 18. Bxd5 {[%clk 0:00:00]}  Bxa1 {[%clk 0:00:00]} 19. Qxa1 {[%clk 0:00:00]}  Bb7 {[%clk 0:00:00]} 20. Rc1 {[%clk 0:00:00]}  Bxc6 {[%clk 0:00:00]} 21. Bxc6 {[%clk 0:00:00]}  Qe5 {[%clk 0:00:00]} 22. Bxd7 {[%clk 0:00:00]}  Qxa1 {[%clk 0:00:00]} 23. Rxa1 {[%clk 0:00:00]}  Re2 {[%clk 0:00:00]} 24. Bg4 {[%clk 0:00:00]}  Rd2 {[%clk 0:00:00]} 25. Bb4 {[%clk 0:00:00]}  Rd4 {[%clk 0:00:00]} 26. Bc3 {[%clk 0:00:00]}  Rd3 {[%clk 0:00:00]} 27. Bf6 {[%clk 0:00:00]}  Rd6 {[%clk 0:00:00]} 28. Be5 {[%clk 0:00:00]}  Rd5 {[%clk 0:00:00]} 29. Bf3 {[%clk 0:00:00]}  Rxe5 {[%clk 0:00:00]} 30. Bxa8 {[%clk 0:00:00]}  Re2 {[%clk 0:00:00]} 31. a4 {[%clk 0:00:00]}  Kg7 {[%clk 0:00:00]} 32. b4 {[%clk 0:00:00]}  Rb2 {[%clk 0:00:00]} 33. b5 {[%clk 0:00:00]}  h5 {[%clk 0:00:00]} 34. Bc6 {[%clk 0:00:00]}  g5 {[%clk 0:00:00]} 35. a5 {[%clk 0:00:00]}  f6 {[%clk 0:00:00]} 36. b6 {[%clk 0:00:00]}  axb6 {[%clk 0:00:00]} 37. a6 {[%clk 0:00:00]} 1-0


[Site "https://www.chess.com"]

[Event "Titled Tuesday Blitz August 16 Early 2022"]
[White "Tarasova, Viktoriya"]
[Black "Cruz Mendez, Jean Marco"]
[WhiteFideId "4175840"]
[BlackFideId "3526402"]
[WhiteElo "2182"]
[BlackElo "2064"]
[Result "0-1"]
[Round "01"]
[TimeControl "180+2"]
[Date "2022.08.18"]
[WhiteClock "0:00:00"]
[BlackClock "0:00:00"]

1. d4 {[%clk 0:00:00]}  Nf6 {[%clk 0:00:00]} 2. c4 {[%clk 0:00:00]}  e6 {[%clk 0:00:00]} 3. Nc3 {[%clk 0:00:00]}  d5 {[%clk 0:00:00]} 4. cxd5 {[%clk 0:00:00]}  exd5 {[%clk 0:00:00]} 5. Bg5 {[%clk 0:00:00]}  Be7 {[%clk 0:00:00]} 6. e3 {[%clk 0:00:00]}  c6 {[%clk 0:00:00]} 7. Bd3 {[%clk 0:00:00]}  h6 {[%clk 0:00:00]} 8. Bh4 {[%clk 0:00:00]}  O-O {[%clk 0:00:00]} 9. Qc2 {[%clk 0:00:00]}  c5 {[%clk 0:00:00]} 10. Nge2 {[%clk 0:00:00]}  Nc6 {[%clk 0:00:00]} 11. a3 {[%clk 0:00:00]}  c4 {[%clk 0:00:00]} 12. Bf5 {[%clk 0:00:00]}  Be6 {[%clk 0:00:00]} 13. O-O {[%clk 0:00:00]}  Qd7 {[%clk 0:00:00]} 14. Bxe6 {[%clk 0:00:00]}  fxe6 {[%clk 0:00:00]} 15. Nf4 {[%clk 0:00:00]}  Bd6 {[%clk 0:00:00]} 16. Ng6 {[%clk 0:00:00]}  Rf7 {[%clk 0:00:00]} 17. f4 {[%clk 0:00:00]}  Rb8 {[%clk 0:00:00]} 18. h3 {[%clk 0:00:00]}  b5 {[%clk 0:00:00]} 19. g4 {[%clk 0:00:00]}  a5 {[%clk 0:00:00]} 20. g5 {[%clk 0:00:00]}  hxg5 {[%clk 0:00:00]} 21. fxg5 {[%clk 0:00:00]}  Nh7 {[%clk 0:00:00]} 22. Rxf7 {[%clk 0:00:00]}  Qxf7 {[%clk 0:00:00]} 23. Rf1 {[%clk 0:00:00]}  Qe8 {[%clk 0:00:00]} 24. Ne2 {[%clk 0:00:00]}  b4 {[%clk 0:00:00]} 25. a4 {[%clk 0:00:00]}  b3 {[%clk 0:00:00]} 26. Qb1 {[%clk 0:00:00]}  Nb4 {[%clk 0:00:00]} 27. Nef4 {[%clk 0:00:00]}  Nd3 {[%clk 0:00:00]} 28. Kh1 {[%clk 0:00:00]}  Bxf4 {[%clk 0:00:00]} 29. Nxf4 {[%clk 0:00:00]}  Nxf4 {[%clk 0:00:00]} 30. Rxf4 {[%clk 0:00:00]}  e5 {[%clk 0:00:00]} 31. dxe5 {[%clk 0:00:00]}  Qxe5 {[%clk 0:00:00]} 32. g6 {[%clk 0:00:00]}  Nf8 {[%clk 0:00:00]} 33. Qg1 {[%clk 0:00:00]}  Qxb2 {[%clk 0:00:00]} 34. Be7 {[%clk 0:00:00]}  Qe5 {[%clk 0:00:00]} 35. Rf7 {[%clk 0:00:00]}  Qe4+ {[%clk 0:00:00]} 36. Kh2 {[%clk 0:00:00]}  Nxg6 {[%clk 0:00:00]} 37. Bd6 {[%clk 0:00:00]}  Kxf7 {[%clk 0:00:00]} 38. Bxb8 {[%clk 0:00:00]}  Qf3 {[%clk 0:00:00]} 39. Qg5 {[%clk 0:00:00]}  b2 {[%clk 0:00:00]} 0-1


[Site "https://www.chess.com"]

[Event "Titled Tuesday Blitz August 16 Early 2022"]
[White "Taspinar, Yanki"]
[Black "Kotepalli, Sai Nirupama"]
[WhiteFideId "34561188"]
[BlackFideId "5039444"]
[WhiteElo "1549"]
[BlackElo "1910"]
[Result "1/2-1/2"]
[Round "01"]
[TimeControl "180+2"]
[Date "2022.08.18"]
[WhiteClock "0:00:00"]
[BlackClock "0:00:00"]

1. Nf3 {[%clk 0:00:00]}  g6 {[%clk 0:00:00]} 2. g3 {[%clk 0:00:00]}  Bg7 {[%clk 0:00:00]} 3. Bg2 {[%clk 0:00:00]}  Nf6 {[%clk 0:00:00]} 4. O-O {[%clk 0:00:00]}  O-O {[%clk 0:00:00]} 5. c4 {[%clk 0:00:00]}  d6 {[%clk 0:00:00]} 6. d4 {[%clk 0:00:00]}  c5 {[%clk 0:00:00]} 7. dxc5 {[%clk 0:00:00]}  dxc5 {[%clk 0:00:00]} 8. Nc3 {[%clk 0:00:00]}  Nc6 {[%clk 0:00:00]} 9. Qa4 {[%clk 0:00:00]}  Nd4 {[%clk 0:00:00]} 10. Nxd4 {[%clk 0:00:00]}  cxd4 {[%clk 0:00:00]} 11. Nd5 {[%clk 0:00:00]}  Nxd5 {[%clk 0:00:00]} 12. cxd5 {[%clk 0:00:00]}  Bf5 {[%clk 0:00:00]} 13. Bf4 {[%clk 0:00:00]}  Qb6 {[%clk 0:00:00]} 14. Qa3 {[%clk 0:00:00]}  d3 {[%clk 0:00:00]} 15. exd3 {[%clk 0:00:00]}  Bxb2 {[%clk 0:00:00]} 16. Qxe7 {[%clk 0:00:00]}  Bxa1 {[%clk 0:00:00]} 17. Rxa1 {[%clk 0:00:00]}  Rfe8 {[%clk 0:00:00]} 18. Qh4 {[%clk 0:00:00]}  Re2 {[%clk 0:00:00]} 19. Be3 {[%clk 0:00:00]}  Rxe3 {[%clk 0:00:00]} 20. fxe3 {[%clk 0:00:00]}  Qxe3+ {[%clk 0:00:00]} 21. Kh1 {[%clk 0:00:00]}  Re8 {[%clk 0:00:00]} 22. Qa4 {[%clk 0:00:00]}  Bxd3 {[%clk 0:00:00]} 23. h3 {[%clk 0:00:00]}  Rd8 {[%clk 0:00:00]} 24. Qh4 {[%clk 0:00:00]}  Re8 {[%clk 0:00:00]} 25. Rd1 {[%clk 0:00:00]}  Bc2 {[%clk 0:00:00]} 26. Rg1 {[%clk 0:00:00]}  Be4 {[%clk 0:00:00]} 27. d6 {[%clk 0:00:00]}  Bxg2+ {[%clk 0:00:00]} 28. Rxg2 {[%clk 0:00:00]}  Qd3 {[%clk 0:00:00]} 29. Qf4 {[%clk 0:00:00]}  Re1+ {[%clk 0:00:00]} 30. Kh2 {[%clk 0:00:00]}  Qd1 {[%clk 0:00:00]} 31. Rf2 {[%clk 0:00:00]}  Rh1+ {[%clk 0:00:00]} 32. Kg2 {[%clk 0:00:00]}  Rg1+ {[%clk 0:00:00]} 33. Kh2 {[%clk 0:00:00]}  Rh1+ {[%clk 0:00:00]} 34. Kg2 {[%clk 0:00:00]}  Rg1+ {[%clk 0:00:00]} 35. Kh2 {[%clk 0:00:00]}  Rh1+ {[%clk 0:00:00]} 1/2-1/2


[Site "https://www.chess.com"]

[Event "Titled Tuesday Blitz August 16 Early 2022"]
[White "Terry, Renato"]
[Black "Karimov, Alisher"]
[WhiteFideId "3803457"]
[BlackFideId "14700280"]
[WhiteElo "2577"]
[BlackElo "2186"]
[Result "0-1"]
[Round "01"]
[TimeControl "180+1"]
[Date "2022.08.16"]
[WhiteClock "0:00:31"]
[BlackClock "0:02:03"]

1. e4 {[%clk 0:03:00]}  e5 {[%clk 0:02:58]} 2. Nf3 {[%clk 0:02:59]}  Nc6 {[%clk 0:02:58]} 3. c3 {[%clk 0:02:56]}  Nf6 {[%clk 0:02:58]} 4. d4 {[%clk 0:02:46]}  Nxe4 {[%clk 0:02:58]} 5. d5 {[%clk 0:02:38]}  Bc5 {[%clk 0:02:58]} 6. dxc6 {[%clk 0:02:38]}  Bxf2+ {[%clk 0:02:57]} 7. Ke2 {[%clk 0:02:37]}  bxc6 {[%clk 0:02:58]} 8. Qa4 {[%clk 0:02:37]}  f5 {[%clk 0:02:55]} 9. Nbd2 {[%clk 0:02:35]}  O-O {[%clk 0:02:55]} 10. Nxe4 {[%clk 0:02:30]}  fxe4 {[%clk 0:02:55]} 11. Kxf2 {[%clk 0:02:18]}  exf3 {[%clk 0:02:55]} 12. g3 {[%clk 0:02:17]}  d5 {[%clk 0:02:54]} 13. Be3 {[%clk 0:02:17]}  a5 {[%clk 0:02:43]} 14. Rd1 {[%clk 0:02:07]}  Bb7 {[%clk 0:02:34]} 15. Bh3 {[%clk 0:02:03]}  Kh8 {[%clk 0:02:32]} 16. Qh4 {[%clk 0:01:57]}  Qd6 {[%clk 0:02:30]} 17. Qa4 {[%clk 0:01:22]}  c5 {[%clk 0:02:28]} 18. Qb5 {[%clk 0:01:22]}  d4 {[%clk 0:02:22]} 19. Qxb7 {[%clk 0:01:21]}  Rab8 {[%clk 0:02:16]} 20. Qe4 {[%clk 0:01:19]}  Rxb2+ {[%clk 0:02:16]} 21. Ke1 {[%clk 0:00:34]}  Re2+ {[%clk 0:02:05]} 22. Kf1 {[%clk 0:00:34]}  Rxe3 {[%clk 0:02:02]} 23. Qxe3 {[%clk 0:00:29]}  dxe3 {[%clk 0:02:03]} 24. Rxd6 {[%clk 0:00:30]}  cxd6 {[%clk 0:02:03]} 25. Bg4 {[%clk 0:00:31]}  e4 {[%clk 0:02:03]} 0-1


[Site "https://www.chess.com"]

[Event "Titled Tuesday Blitz August 16 Early 2022"]
[White "Tica, Sven"]
[Black "Pourkashiyan, Atousa"]
[WhiteFideId "14526948"]
[BlackFideId "12502014"]
[WhiteElo "2350"]
[BlackElo "2247"]
[Result "1-0"]
[Round "01"]
[TimeControl "180+2"]
[Date "2022.08.18"]
[WhiteClock "0:00:00"]
[BlackClock "0:00:00"]

1. e4 {[%clk 0:00:00]}  c5 {[%clk 0:00:00]} 2. Nc3 {[%clk 0:00:00]}  e6 {[%clk 0:00:00]} 3. f4 {[%clk 0:00:00]}  a6 {[%clk 0:00:00]} 4. g3 {[%clk 0:00:00]}  b5 {[%clk 0:00:00]} 5. Bg2 {[%clk 0:00:00]}  Bb7 {[%clk 0:00:00]} 6. d3 {[%clk 0:00:00]}  Nf6 {[%clk 0:00:00]} 7. Nf3 {[%clk 0:00:00]}  d5 {[%clk 0:00:00]} 8. e5 {[%clk 0:00:00]}  Nfd7 {[%clk 0:00:00]} 9. Qe2 {[%clk 0:00:00]}  Be7 {[%clk 0:00:00]} 10. O-O {[%clk 0:00:00]}  Nc6 {[%clk 0:00:00]} 11. Qf2 {[%clk 0:00:00]}  Rc8 {[%clk 0:00:00]} 12. Ne2 {[%clk 0:00:00]}  Nb4 {[%clk 0:00:00]} 13. Bd2 {[%clk 0:00:00]}  Nxc2 {[%clk 0:00:00]} 14. Rac1 {[%clk 0:00:00]}  Nb4 {[%clk 0:00:00]} 15. Bxb4 {[%clk 0:00:00]}  cxb4 {[%clk 0:00:00]} 16. Rxc8 {[%clk 0:00:00]}  Qxc8 {[%clk 0:00:00]} 17. Rc1 {[%clk 0:00:00]}  Qb8 {[%clk 0:00:00]} 18. d4 {[%clk 0:00:00]}  O-O {[%clk 0:00:00]} 19. Ne1 {[%clk 0:00:00]}  Rc8 {[%clk 0:00:00]} 20. Nd3 {[%clk 0:00:00]}  Rxc1+ {[%clk 0:00:00]} 21. Nexc1 {[%clk 0:00:00]}  Qc7 {[%clk 0:00:00]} 22. Bf1 {[%clk 0:00:00]}  Nb6 {[%clk 0:00:00]} 23. Nb3 {[%clk 0:00:00]}  Na4 {[%clk 0:00:00]} 24. Qd2 {[%clk 0:00:00]}  a5 {[%clk 0:00:00]} 25. Be2 {[%clk 0:00:00]}  Bc8 {[%clk 0:00:00]} 26. Kg2 {[%clk 0:00:00]}  Bd7 {[%clk 0:00:00]} 27. Bd1 {[%clk 0:00:00]}  Qc4 {[%clk 0:00:00]} 28. Be2 {[%clk 0:00:00]}  Qc7 {[%clk 0:00:00]} 29. h4 {[%clk 0:00:00]}  f6 {[%clk 0:00:00]} 30. h5 {[%clk 0:00:00]}  Bd8 {[%clk 0:00:00]} 31. g4 {[%clk 0:00:00]}  Be8 {[%clk 0:00:00]} 32. Ndc5 {[%clk 0:00:00]}  Nxc5 {[%clk 0:00:00]} 33. Nxc5 {[%clk 0:00:00]}  Qc6 {[%clk 0:00:00]} 34. Bd3 {[%clk 0:00:00]}  Be7 {[%clk 0:00:00]} 35. Nb3 {[%clk 0:00:00]}  a4 {[%clk 0:00:00]} 36. Nc1 {[%clk 0:00:00]}  Qc7 {[%clk 0:00:00]} 37. Bb1 {[%clk 0:00:00]}  g6 {[%clk 0:00:00]} 38. hxg6 {[%clk 0:00:00]}  hxg6 {[%clk 0:00:00]} 39. f5 {[%clk 0:00:00]}  gxf5 {[%clk 0:00:00]} 40. gxf5 {[%clk 0:00:00]}  exf5 {[%clk 0:00:00]} 41. Bxf5 {[%clk 0:00:00]}  fxe5 {[%clk 0:00:00]} 42. Qh6 {[%clk 0:00:00]}  Bf8 {[%clk 0:00:00]} 43. Be6+ {[%clk 0:00:00]}  Bf7 {[%clk 0:00:00]} 44. Qg6+ {[%clk 0:00:00]}  Bg7 {[%clk 0:00:00]} 45. Nd3 {[%clk 0:00:00]}  e4 {[%clk 0:00:00]} 46. Ne5 {[%clk 0:00:00]}  Bxe6 {[%clk 0:00:00]} 47. Qxe6+ {[%clk 0:00:00]}  Kh7 {[%clk 0:00:00]} 48. Qg6+ {[%clk 0:00:00]}  Kg8 {[%clk 0:00:00]} 49. Ng4 {[%clk 0:00:00]}  Qe7 {[%clk 0:00:00]} 50. Nh6+ {[%clk 0:00:00]}  Kf8 {[%clk 0:00:00]} 51. Nf5 {[%clk 0:00:00]}  Qf6 {[%clk 0:00:00]} 52. Qg4 {[%clk 0:00:00]}  Qxd4 {[%clk 0:00:00]} 53. Nxd4 {[%clk 0:00:00]}  Bxd4 {[%clk 0:00:00]} 54. Qf5+ {[%clk 0:00:00]}  Ke7 {[%clk 0:00:00]} 55. Qxd5 {[%clk 0:00:00]}  Bxb2 {[%clk 0:00:00]} 56. Qxe4+ {[%clk 0:00:00]}  Kd6 {[%clk 0:00:00]} 57. Qxb4+ {[%clk 0:00:00]}  Kc6 {[%clk 0:00:00]} 58. Qxb2 {[%clk 0:00:00]}  Kc5 {[%clk 0:00:00]} 59. a3 {[%clk 0:00:00]} 1-0


[Site "https://www.chess.com"]

[Event "Titled Tuesday Blitz August 16 Early 2022"]
[White "Tifferet, Shaked"]
[Black "Bolanos, Fernando"]
[WhiteFideId "2811529"]
[BlackFideId "3304094"]
[WhiteElo "2083"]
[BlackElo "2086"]
[Result "0-1"]
[Round "01"]
[TimeControl "180+2"]
[Date "2022.08.18"]
[WhiteClock "0:00:00"]
[BlackClock "0:00:00"]

1. e4 {[%clk 0:00:00]}  c5 {[%clk 0:00:00]} 2. c3 {[%clk 0:00:00]}  e5 {[%clk 0:00:00]} 3. Nf3 {[%clk 0:00:00]}  Nc6 {[%clk 0:00:00]} 4. Bc4 {[%clk 0:00:00]}  Nf6 {[%clk 0:00:00]} 5. d3 {[%clk 0:00:00]}  Be7 {[%clk 0:00:00]} 6. Nbd2 {[%clk 0:00:00]}  O-O {[%clk 0:00:00]} 7. O-O {[%clk 0:00:00]}  a6 {[%clk 0:00:00]} 8. a4 {[%clk 0:00:00]}  Rb8 {[%clk 0:00:00]} 9. Re1 {[%clk 0:00:00]}  b5 {[%clk 0:00:00]} 10. axb5 {[%clk 0:00:00]}  axb5 {[%clk 0:00:00]} 11. Bb3 {[%clk 0:00:00]}  Bb7 {[%clk 0:00:00]} 12. Nf1 {[%clk 0:00:00]}  d6 {[%clk 0:00:00]} 13. Ng3 {[%clk 0:00:00]}  Re8 {[%clk 0:00:00]} 14. Ng5 {[%clk 0:00:00]}  d5 {[%clk 0:00:00]} 15. Nf5 {[%clk 0:00:00]}  c4 {[%clk 0:00:00]} 16. Bc2 {[%clk 0:00:00]}  h6 {[%clk 0:00:00]} 17. exd5 {[%clk 0:00:00]}  Nxd5 {[%clk 0:00:00]} 18. Ne4 {[%clk 0:00:00]}  cxd3 {[%clk 0:00:00]} 19. Bb3 {[%clk 0:00:00]}  Na5 {[%clk 0:00:00]} 20. Bxh6 {[%clk 0:00:00]}  Nxb3 {[%clk 0:00:00]} 21. Bxg7 {[%clk 0:00:00]}  Bc8 {[%clk 0:00:00]} 22. Qh5 {[%clk 0:00:00]}  f6 {[%clk 0:00:00]} 23. Neg3 {[%clk 0:00:00]}  Nf4 {[%clk 0:00:00]} 24. Qh8+ {[%clk 0:00:00]}  Kf7 {[%clk 0:00:00]} 25. Qh7 {[%clk 0:00:00]}  Ke6 {[%clk 0:00:00]} 26. Bh6 {[%clk 0:00:00]}  d2 {[%clk 0:00:00]} 27. Ng7+ {[%clk 0:00:00]}  Kd7 {[%clk 0:00:00]} 28. Rad1 {[%clk 0:00:00]}  Kc6 {[%clk 0:00:00]} 29. Re4 {[%clk 0:00:00]}  Rh8 {[%clk 0:00:00]} 30. Rc4+ {[%clk 0:00:00]}  bxc4 {[%clk 0:00:00]} 31. Qe4+ {[%clk 0:00:00]}  Qd5 {[%clk 0:00:00]} 32. Bxf4 {[%clk 0:00:00]}  Qxe4 {[%clk 0:00:00]} 33. Nxe4 {[%clk 0:00:00]}  exf4 {[%clk 0:00:00]} 34. Nxd2 {[%clk 0:00:00]}  Rd8 {[%clk 0:00:00]} 35. Re1 {[%clk 0:00:00]}  Rxd2 {[%clk 0:00:00]} 36. g3 {[%clk 0:00:00]}  Bc5 {[%clk 0:00:00]} 37. Rf1 {[%clk 0:00:00]}  f3 {[%clk 0:00:00]} 38. Nh5 {[%clk 0:00:00]}  Bh3 {[%clk 0:00:00]} 39. Re1 {[%clk 0:00:00]}  Bxf2+ {[%clk 0:00:00]} 0-1


[Site "https://www.chess.com"]

[Event "Titled Tuesday Blitz August 16 Early 2022"]
[White "Tologon tegin, Semetei"]
[Black "Polanco Nunez, Yoel Estarling"]
[WhiteFideId "13800574"]
[BlackFideId "6401783"]
[WhiteElo "2174"]
[BlackElo "2132"]
[Result "1-0"]
[Round "01"]
[TimeControl "180+2"]
[Date "2022.08.18"]
[WhiteClock "0:00:00"]
[BlackClock "0:00:00"]

1. g3 {[%clk 0:00:00]}  Nf6 {[%clk 0:00:00]} 2. Bg2 {[%clk 0:00:00]}  d5 {[%clk 0:00:00]} 3. d3 {[%clk 0:00:00]}  c6 {[%clk 0:00:00]} 4. Nd2 {[%clk 0:00:00]}  e5 {[%clk 0:00:00]} 5. Ngf3 {[%clk 0:00:00]}  Bd6 {[%clk 0:00:00]} 6. c4 {[%clk 0:00:00]}  O-O {[%clk 0:00:00]} 7. cxd5 {[%clk 0:00:00]}  cxd5 {[%clk 0:00:00]} 8. O-O {[%clk 0:00:00]}  Nc6 {[%clk 0:00:00]} 9. Nb3 {[%clk 0:00:00]}  h6 {[%clk 0:00:00]} 10. d4 {[%clk 0:00:00]}  e4 {[%clk 0:00:00]} 11. Ne1 {[%clk 0:00:00]}  b6 {[%clk 0:00:00]} 12. Nc2 {[%clk 0:00:00]}  Ba6 {[%clk 0:00:00]} 13. Ne3 {[%clk 0:00:00]}  Rc8 {[%clk 0:00:00]} 14. Nf5 {[%clk 0:00:00]}  Bb8 {[%clk 0:00:00]} 15. Bf4 {[%clk 0:00:00]}  Bxf4 {[%clk 0:00:00]} 16. gxf4 {[%clk 0:00:00]}  Qc7 {[%clk 0:00:00]} 17. e3 {[%clk 0:00:00]}  Qd7 {[%clk 0:00:00]} 18. Ng3 {[%clk 0:00:00]}  Nb4 {[%clk 0:00:00]} 19. a3 {[%clk 0:00:00]}  Bxf1 {[%clk 0:00:00]} 20. Bxf1 {[%clk 0:00:00]}  Nd3 {[%clk 0:00:00]} 21. Bxd3 {[%clk 0:00:00]}  exd3 {[%clk 0:00:00]} 22. Qxd3 {[%clk 0:00:00]}  Qe6 {[%clk 0:00:00]} 23. Nd2 {[%clk 0:00:00]}  Rc7 {[%clk 0:00:00]} 24. Kg2 {[%clk 0:00:00]}  Rfc8 {[%clk 0:00:00]} 25. h3 {[%clk 0:00:00]}  Rc2 {[%clk 0:00:00]} 26. Rb1 {[%clk 0:00:00]}  h5 {[%clk 0:00:00]} 27. Ne2 {[%clk 0:00:00]}  Ne4 {[%clk 0:00:00]} 28. Nxe4 {[%clk 0:00:00]}  Qxe4+ {[%clk 0:00:00]} 29. Qxe4 {[%clk 0:00:00]}  dxe4 {[%clk 0:00:00]} 30. Ng3 {[%clk 0:00:00]}  Re2 {[%clk 0:00:00]} 31. Nxe2 {[%clk 0:00:00]}  Rc2 {[%clk 0:00:00]} 32. Ng3 {[%clk 0:00:00]}  g6 {[%clk 0:00:00]} 33. Nxe4 {[%clk 0:00:00]} 1-0


[Site "https://www.chess.com"]